fUST/lending_fUST_20250724
["ID","MTS","AMOUNT","RATE_DAILY","PERIOD"]
[374444765,1753303841729,-460.0,0.00019654,2]
[374444768,1753303841739,-460.0,0.00019654,2]
[374444772,1753303841749,-460.0,0.00019654,2]
[374444775,1753303841760,-460.0,0.00019654,2]
[374444778,1753303841769,-460.0,0.00019654,2]
[374444781,1753303841779,-460.0,0.00019654,2]
[374444784,1753303841788,-460.0,0.00019654,2]
[374444787,1753303841798,-460.0,0.00019654,2]
[374444790,1753303841808,-460.0,0.00019654,2]
[374444793,1753303841817,-460.0,0.00019654,2]
[374444796,1753303841829,-460.0,0.00019654,2]
[374444799,1753303841839,-460.0,0.00019654,2]
[374444802,1753303841849,-460.0,0.00019654,2]
[374444805,1753303841858,-460.0,0.00019654,2]
[374444808,1753303841867,-460.0,0.00019654,2]
[374444811,1753303841876,-460.0,0.00019654,2]
[374444814,1753303841886,-626.83,0.00019654,2]
[374444817,1753303841895,-460.0,0.00019654,2]
[374444819,1753303841905,-1660.13,0.00019655,2]
[374444822,1753303841914,-548.68092052,0.00019655,2]
[374444826,1753303841927,-460.0,0.00019656,2]
[374444829,1753303841938,-460.0,0.00019656,2]
[374444831,1753303841947,-307.39370806,0.00019656,2]
[374444834,1753303841956,-500.0,0.00019673,2]
[374444837,1753303841966,-500.0,0.00019673,2]
[374444840,1753303841975,-624.01322793,0.00019673,2]
[374444843,1753303841984,-500.0,0.00019673,2]
[374444846,1753303841994,-500.0,0.00019673,2]
[374444849,1753303842004,-500.0,0.00019673,2]
[374444852,1753303842014,-500.0,0.00019673,2]
[374444855,1753303842024,-150.0,0.00019747,2]
[374444859,1753303842034,-460.0,0.00019755,2]
[374444861,1753303842043,-460.0,0.00019755,2]
[374444864,1753303842053,-460.0,0.00019755,2]
[374444867,1753303842062,-651.05,0.00019755,2]
[374444871,1753303842072,-460.0,0.00019755,2]
[374444874,1753303842082,-577.86,0.00019755,2]
[374444877,1753303842092,-716.81,0.00019755,2]
[374444879,1753303842104,-460.0,0.00019756,2]
[374444882,1753303842115,-460.0,0.00019924,2]
[374444885,1753303842125,-460.0,0.00019924,2]
[374444889,1753303842135,-460.0,0.00019925,2]
[374444891,1753303842146,-460.0,0.00019925,2]
[374444895,1753303842157,-460.0,0.00019925,2]
[374444897,1753303842166,-668.33,0.00019925,2]
[374444901,1753303842180,-460.0,0.00019925,2]
[374444905,1753303842191,-460.0,0.00019926,2]
[374444908,1753303842200,-460.0,0.00019926,2]
[374444910,1753303842211,-777.33,0.00019926,2]
[374444913,1753303842220,-460.0,0.00019926,2]
[374444916,1753303842230,-460.0,0.00019926,2]
[374444919,1753303842239,-879.56,0.00019926,2]
[374444922,1753303842249,-460.0,0.00019926,2]
[374444926,1753303842258,-318.3240979,0.00019926,2]
[374444929,1753303842267,-586.53,0.00019926,2]
[374444932,1753303842277,-460.0,0.00019926,2]
[374444935,1753303842286,-460.0,0.00019926,2]
[374444938,1753303842295,-460.0,0.00019926,2]
[374444940,1753303842305,-460.0,0.00019926,2]
[374444944,1753303842316,-460.0,0.00019926,2]
[374444946,1753303842326,-460.0,0.00019926,2]
[374444950,1753303842336,-1878.19,0.00019926,2]
[374444953,1753303842345,-460.0,0.00019926,2]
[374444955,1753303842355,-460.0,0.00019927,2]
[374444958,1753303842367,-460.0,0.00019927,2]
[374444962,1753303842378,-460.0,0.00019927,2]
[374444964,1753303842387,-460.0,0.00019927,2]
[374444966,1753303842397,-460.0,0.00019927,2]
[374444968,1753303842408,-460.0,0.00019927,2]
[374444970,1753303842419,-1010.62,0.00019927,2]
[374444973,1753303842431,-460.0,0.00019927,2]
[374444976,1753303842440,-460.0,0.00019927,2]
[374444979,1753303842450,-460.0,0.00019927,2]
[374444982,1753303842462,-460.0,0.00019927,2]
[374444985,1753303842472,-460.0,0.00019927,2]
[374444988,1753303842482,-460.0,0.00019927,2]
[374444992,1753303842492,-460.0,0.00019927,2]
[374444995,1753303842502,-460.0,0.00019927,2]
[374444998,1753303842512,-460.0,0.00019927,2]
[374445001,1753303842521,-460.0,0.00019927,2]
[374445003,1753303842530,-460.0,0.00019927,2]
[374445006,1753303842540,-460.0,0.00019927,2]
[374445009,1753303842549,-460.0,0.00019927,2]
[374445012,1753303842558,-460.0,0.00019927,2]
[374445015,1753303842568,-460.0,0.00019927,2]
[374445018,1753303842577,-460.0,0.00019927,2]
[374445021,1753303842586,-460.0,0.00019927,2]
[374445025,1753303842596,-460.0,0.00019927,2]
[374445028,1753303842606,-460.0,0.00019927,2]
[374445031,1753303842615,-460.0,0.00019927,2]
[374445034,1753303842624,-460.0,0.00019927,2]
[374445036,1753303842633,-460.0,0.00019928,2]
[374445040,1753303842643,-460.0,0.00019928,2]
[374445042,1753303842653,-460.0,0.00019928,2]
[374445045,1753303842662,-238.96923298,0.00019928,2]
[374445048,1753303842673,-460.0,0.00019928,2]
[374445051,1753303842682,-387.11,0.00019928,2]
[374445054,1753303842691,-460.0,0.00019928,2]
[374445057,1753303842701,-460.0,0.00019928,2]
[374445060,1753303842710,-460.0,0.00019928,2]
[374445063,1753303842720,-460.0,0.00019928,2]
[374445066,1753303842730,-230.69504017,0.00019928,2]
[374445069,1753303842740,-335.84,0.00019928,2]
[374445072,1753303842749,-626.83,0.00019928,2]
[374445075,1753303842759,-1660.13,0.00019929,2]
[374445078,1753303842769,-212.71675304,0.00019933,2]
[374445081,1753303842778,-179.78425889,0.00019988,2]
[374445084,1753303842787,-460.0,0.00020029,2]
[374445087,1753303842796,-460.0,0.00020029,2]
[374445090,1753303842805,-460.0,0.00020029,2]
[374445093,1753303842815,-651.05,0.00020029,2]
[374445097,1753303842824,-577.86,0.00020029,2]
[374445100,1753303842834,-716.81,0.00020029,2]
[374445103,1753303842844,-460.0,0.0002003,2]
[374445105,1753303842854,-266.799769,0.00020187,2]
[374445108,1753303842863,-748.05,0.00020192,3]
[374445111,1753303842872,-460.0,0.00020198,2]
[374445114,1753303842883,-460.0,0.00020198,2]
[374445117,1753303842893,-460.0,0.00020199,2]
[374445120,1753303842902,-668.33,0.00020199,2]
[374445123,1753303842912,-460.0,0.00020199,2]
[374445126,1753303842923,-777.33,0.000202,2]
[374445129,1753303842933,-460.0,0.000202,2]
[374445132,1753303842942,-460.0,0.000202,2]
[374445135,1753303842952,-879.56,0.000202,2]
[374445138,1753303842961,-460.0,0.000202,2]
[374445141,1753303842970,-586.53,0.000202,2]
[374445144,1753303842980,-460.0,0.000202,2]
[374445148,1753303842990,-460.0,0.000202,2]
[374445151,1753303843001,-460.0,0.000202,2]
[374445154,1753303843011,-460.0,0.000202,2]
[374445157,1753303843021,-460.0,0.000202,2]
[374445159,1753303843031,-1878.19,0.000202,2]
[374445162,1753303843042,-460.0,0.00020201,2]
[374445166,1753303843052,-503.0238588,0.00020201,2]
[374445171,1753303843062,-460.0,0.00020201,2]
[374445176,1753303843072,-540.0,0.00020201,2]
[374445179,1753303843081,-341.08517822,0.00020201,2]
[374445200,1753303843278,-669.53482178,0.00020201,2]
[374445202,1753303843288,-460.0,0.00020201,2]
[374445204,1753303843297,-460.0,0.00020201,2]
[374445206,1753303843306,-460.0,0.00020201,2]
[374445208,1753303843315,-170.17762871,0.00020201,2]
[374445210,1753303843327,-289.82237129,0.00020201,2]
[374445212,1753303843337,-364.55745297,0.00020201,2]
[374445214,1753303843345,-460.0,0.00020201,2]
[374445216,1753303843355,-214.77767174,0.00020201,2]
[374445218,1753303843366,-245.22232826,0.00020201,2]
[374445220,1753303843375,-460.0,0.00020202,2]
[374445222,1753303843384,-460.0,0.00020202,2]
[374445223,1753303843394,-626.83,0.00020202,2]
[374445225,1753303843404,-1660.13,0.00020203,2]
[374445227,1753303843414,-249.35,0.00020211,3]
[374445229,1753303843426,-500.0,0.00020221,2]
[374445231,1753303843435,-500.0,0.00020221,2]
[374445233,1753303843445,-595.20899026,0.00020221,2]
[374445235,1753303843454,-500.0,0.00020221,2]
[374445240,1753303843492,-1000.0,0.00020221,2]
[374445242,1753303843501,-997.39,0.00020292,3]
[374445244,1753303843511,-498.69,0.00020292,3]
[374445246,1753303843520,-460.0,0.00020303,2]
[374445247,1753303843528,-460.0,0.00020303,2]
[374445249,1753303843538,-460.0,0.00020303,2]
[374445251,1753303843547,-651.05,0.00020303,2]
[374445253,1753303843556,-577.86,0.00020303,2]
[374445255,1753303843565,-716.81,0.00020303,2]
[374445257,1753303843575,-460.0,0.00020304,2]
[374445259,1753303843583,-426.71976577,0.00020472,2]
[374445261,1753303843593,-668.33,0.00020473,2]
[374445263,1753303843602,-777.33,0.00020474,2]
[374445265,1753303843611,-460.0,0.00020474,2]
[374445266,1753303843620,-879.56,0.00020474,2]
[374445268,1753303843629,-586.53,0.00020474,2]
[374445270,1753303843638,-460.0,0.00020474,2]
[374445272,1753303843647,-460.0,0.00020474,2]
[374445274,1753303843656,-1878.19,0.00020474,2]
[374445276,1753303843664,-1010.62,0.00020475,2]
[374445278,1753303843676,-460.0,0.00020475,2]
[374445279,1753303843685,-460.0,0.00020475,2]
[374445281,1753303843694,-460.0,0.00020475,2]
[374445283,1753303843703,-460.0,0.00020475,2]
[374445285,1753303843713,-460.0,0.00020476,2]
[374445287,1753303843723,-460.0,0.00020476,2]
[374445289,1753303843732,-626.83,0.00020476,2]
[374445291,1753303843741,-1660.13,0.00020477,2]
[374445293,1753303843751,-1160.5020923,0.00020562,2]
[374445295,1753303843760,-460.0,0.00020577,2]
[374445296,1753303843769,-460.0,0.00020577,2]
[374445298,1753303843778,-460.0,0.00020577,2]
[374445300,1753303843788,-651.05,0.00020577,2]
[374445302,1753303843798,-577.86,0.00020577,2]
[374445304,1753303843808,-716.81,0.00020577,2]
[374445306,1753303843817,-460.0,0.00020578,2]
[374445308,1753303843827,-160.0,0.00020645,2]
[374445309,1753303843838,-12622.36869388,0.00020645,2]
[374445311,1753303843848,-215.84326551,0.00020645,2]
[374445313,1753303843858,-840.06856235,0.00020645,2]
[374445315,1753303843867,-214.67886746,0.00020646,2]
[374445317,1753303843877,-160.0,0.00020646,2]
[374445319,1753303843887,-160.0,0.00020646,2]
[374445320,1753303843897,-160.0,0.00020646,2]
[374445322,1753303843906,-160.0,0.00020646,2]
[374445323,1753303843916,-526.15909479,0.00020646,2]
[374445324,1753303843927,-160.0,0.00020646,2]
[374445325,1753303843936,-231.11583447,0.00020646,2]
[374445327,1753303843947,-476.696448,0.00020646,2]
[374445329,1753303843957,-160.0,0.00020646,2]
[374445331,1753303843967,-160.0,0.00020646,2]
[374445333,1753303843977,-160.0,0.00020646,2]
[374445335,1753303843987,-151.0,0.00020663,2]
[374445337,1753303843996,-151.0,0.00020663,2]
[374445338,1753303844006,-151.0,0.00020663,2]
[374445339,1753303844016,-151.0,0.00020663,2]
[374445340,1753303844025,-151.0,0.00020663,2]
[374445341,1753303844034,-215.0738,0.00020663,2]
[374445342,1753303844043,-151.0,0.00020663,2]
[374445343,1753303844053,-151.0,0.00020663,2]
[374445344,1753303844063,-151.0,0.00020663,2]
[374445345,1753303844072,-151.0,0.00020663,2]
[374445346,1753303844081,-151.0,0.00020663,2]
[374445347,1753303844091,-151.0,0.00020663,2]
[374445348,1753303844100,-151.0,0.00020663,2]
[374445349,1753303844113,-151.0,0.00020663,2]
[374445350,1753303844122,-151.0,0.00020663,2]
[374445351,1753303844132,-151.0,0.00020663,2]
[374445352,1753303844143,-151.0,0.00020663,2]
[374445353,1753303844153,-151.0,0.00020663,2]
[374445354,1753303844162,-151.0,0.00020663,2]
[374445355,1753303844174,-151.0,0.00020663,2]
[374445356,1753303844186,-151.0,0.00020663,2]
[374445357,1753303844196,-151.0,0.00020663,2]
[374445358,1753303844205,-151.0,0.00020663,2]
[374445359,1753303844215,-151.0,0.00020663,2]
[374445360,1753303844224,-151.0,0.00020663,2]
[374445361,1753303844233,-151.0,0.00020663,2]
[374445362,1753303844242,-151.0,0.00020663,2]
[374445363,1753303844251,-151.0,0.00020663,2]
[374445364,1753303844261,-151.0,0.00020663,2]
[374445365,1753303844270,-151.0,0.00020663,2]
[374445366,1753303844280,-151.0,0.00020663,2]
[374445367,1753303844289,-151.0,0.00020663,2]
[374445368,1753303844298,-151.0,0.00020663,2]
[374445369,1753303844307,-151.0,0.00020663,2]
[374445370,1753303844316,-151.0,0.00020663,2]
[374445371,1753303844326,-151.0,0.00020663,2]
[374445372,1753303844335,-151.0,0.00020663,2]
[374445373,1753303844344,-151.0,0.00020663,2]
[374445374,1753303844353,-150.0,0.00020687,2]
[374445375,1753303844363,-468.629,0.00020728,2]
[374445376,1753303844372,-178.72319565,0.00020728,2]
[374445377,1753303844381,-668.33,0.00020747,2]
[374445378,1753303844390,-777.33,0.00020748,2]
[374445379,1753303844399,-879.56,0.00020748,2]
[374445380,1753303844408,-586.53,0.00020748,2]
[374445381,1753303844417,-460.0,0.00020748,2]
[374445382,1753303844429,-460.0,0.00020748,2]
[374445383,1753303844438,-1878.19,0.00020748,2]
[374445384,1753303844448,-1010.62,0.00020749,2]
[374445385,1753303844457,-460.0,0.00020749,2]
[374445386,1753303844467,-460.0,0.00020749,2]
[374445387,1753303844476,-460.0,0.00020749,2]
[374445388,1753303844485,-460.0,0.0002075,2]
[374445389,1753303844495,-460.0,0.0002075,2]
[374445390,1753303844504,-626.83,0.0002075,2]
[374445391,1753303844514,-1660.13,0.00020751,2]
[374445392,1753303844523,-1000.0,0.00020768,2]
[374445393,1753303844532,-608.64,0.00020851,2]
[374445394,1753303844542,-460.0,0.00020851,2]
[374445395,1753303844552,-460.0,0.00020851,2]
[374445396,1753303844561,-651.05,0.00020851,2]
[374445397,1753303844571,-577.86,0.00020851,2]
[374445398,1753303844581,-716.81,0.00020851,2]
[374445399,1753303844591,-460.0,0.00020852,2]
[374445400,1753303844601,-4756.35038003,0.00020921,2]
[374445401,1753303844611,-668.33,0.00021021,2]
[374445402,1753303844621,-777.33,0.00021022,2]
[374445403,1753303844631,-879.56,0.00021022,2]
[374445404,1753303844640,-586.53,0.00021022,2]
[374445405,1753303844650,-1878.19,0.00021022,2]
[374445406,1753303844659,-1010.62,0.00021023,2]
[374445407,1753303844668,-460.0,0.00021023,2]
[374445408,1753303844684,-460.0,0.00021023,2]
[374445409,1753303844695,-460.0,0.00021023,2]
[374445410,1753303844704,-460.0,0.00021024,2]
[374445411,1753303844713,-460.0,0.00021024,2]
[374445412,1753303844722,-184.57566,0.00021024,2]
[374445413,1753303844731,-184.57566,0.00021024,2]
[374445414,1753303844740,-626.83,0.00021024,2]
[374445415,1753303844750,-1660.13,0.00021025,2]
[374445416,1753303844759,-460.0,0.00021125,2]
[374445417,1753303844769,-460.0,0.00021125,2]
[374445418,1753303844778,-651.05,0.00021125,2]
[374445419,1753303844788,-577.86,0.00021125,2]
[374445420,1753303844798,-716.81,0.00021125,2]
[374445421,1753303844807,-460.0,0.00021126,2]
[374445422,1753303844816,-160.0,0.0002122,2]
[374445423,1753303844826,-1160.50209227,0.00021222,2]
[374445424,1753303844835,-157.6584605,0.00021294,2]
[374445425,1753303844845,-668.33,0.00021295,2]
[374445426,1753303844854,-777.33,0.00021296,2]
[374445427,1753303844863,-879.56,0.00021296,2]
[374445428,1753303844873,-586.53,0.00021296,2]
[374445429,1753303844883,-1878.19,0.00021296,2]
[374445430,1753303844893,-5698.19820357,0.00021297,2]
[374445431,1753303844903,-1010.62,0.00021297,2]
[374445432,1753303844912,-460.0,0.00021297,2]
[374445433,1753303844926,-460.0,0.00021297,2]
[374445434,1753303844936,-460.0,0.00021297,2]
[374445435,1753303844946,-460.0,0.00021298,2]
[374445436,1753303844956,-460.0,0.00021298,2]
[374445437,1753303844965,-626.83,0.00021298,2]
[374445438,1753303844974,-1660.13,0.00021299,2]
[374445439,1753303844983,-420.0,0.00021303,2]
[374445440,1753303844993,-153.0,0.0002133,2]
[374445441,1753303845002,-153.0,0.0002133,2]
[374445442,1753303845012,-153.0,0.0002133,2]
[374445443,1753303845022,-153.0,0.0002133,2]
[374445444,1753303845031,-153.0,0.0002133,2]
[374445445,1753303845042,-153.0,0.0002133,2]
[374445446,1753303845053,-153.0,0.0002133,2]
[374445447,1753303845063,-153.0,0.0002133,2]
[374445448,1753303845072,-153.0,0.0002133,2]
[374445449,1753303845082,-153.0,0.0002133,2]
[374445450,1753303845091,-153.0,0.0002133,2]
[374445451,1753303845102,-153.0,0.0002133,2]
[374445452,1753303845115,-153.0,0.0002133,2]
[374445453,1753303845125,-342.6918429,0.0002133,2]
[374445454,1753303845135,-153.0,0.0002133,2]
[374445455,1753303845146,-153.0,0.0002133,2]
[374445456,1753303845156,-153.0,0.0002133,2]
[374445457,1753303845166,-153.0,0.0002133,2]
[374445458,1753303845185,-153.0,0.0002133,2]
[374445459,1753303845196,-460.0,0.00021399,2]
[374445460,1753303845206,-460.0,0.00021399,2]
[374445461,1753303845216,-651.05,0.00021399,2]
[374445462,1753303845227,-577.86,0.00021399,2]
[374445463,1753303845237,-716.81,0.00021399,2]
[374445464,1753303845247,-460.0,0.000214,2]
[374445465,1753303845258,-500.0,0.00021442,2]
[374445466,1753303845269,-668.33,0.00021569,2]
[374445467,1753303845279,-777.33,0.0002157,2]
[374445468,1753303845290,-879.56,0.0002157,2]
[374445469,1753303845300,-586.53,0.0002157,2]
[374445470,1753303845310,-1878.19,0.0002157,2]
[374445471,1753303845320,-1010.62,0.00021571,2]
[374445472,1753303845331,-460.0,0.00021571,2]
[374445473,1753303845341,-172.27,0.00021571,2]
[374445474,1753303845351,-460.0,0.00021572,2]
[374445475,1753303845362,-460.0,0.00021572,2]
[374445476,1753303845374,-626.83,0.00021572,2]
[374445477,1753303845385,-1660.13,0.00021573,2]
[374445478,1753303845395,-498.7,0.00021581,3]
[374445479,1753303845406,-808.7,0.00021622,5]
[374445480,1753303845416,-150.0,0.00021628,2]
[374445481,1753303845428,-1994.78,0.00021662,3]
[374445482,1753303845438,-997.38,0.00021662,3]
[374445483,1753303845448,-460.0,0.00021673,2]
[374445484,1753303845458,-460.0,0.00021673,2]
[374445485,1753303845468,-651.05,0.00021673,2]
[374445486,1753303845479,-577.86,0.00021673,2]
[374445487,1753303845488,-716.81,0.00021673,2]
[374445488,1753303845499,-260.0,0.00021768,2]
[374445489,1753303845510,-2028.87642336,0.00021786,2]
[374445490,1753303845520,-668.33,0.00021843,2]
[374445491,1753303845532,-777.33,0.00021844,2]
[374445492,1753303845542,-879.56,0.00021844,2]
[374445493,1753303845552,-586.53,0.00021844,2]
[374445494,1753303845562,-1878.19,0.00021844,2]
[374445495,1753303845572,-1010.62,0.00021845,2]
[374445496,1753303845582,-460.0,0.00021845,2]
[374445497,1753303845593,-460.0,0.00021846,2]
[374445498,1753303845603,-460.0,0.00021846,2]
[374445499,1753303845614,-626.83,0.00021846,2]
[374445500,1753303845623,-1660.13,0.00021847,2]
[374445501,1753303845634,-1160.50209227,0.00021881,2]
[374445502,1753303845644,-500.0,0.00021917,2]
[374445503,1753303845654,-500.0,0.00021917,2]
[374445504,1753303845664,-500.0,0.00021917,2]
[374445505,1753303845676,-500.0,0.00021917,2]
[374445506,1753303845685,-500.0,0.00021917,2]
[374445507,1753303845695,-500.0,0.00021917,2]
[374445508,1753303845705,-500.0,0.00021917,2]
[374445509,1753303845715,-151.0,0.00021917,2]
[374445510,1753303845724,-151.0,0.00021917,2]
[374445511,1753303845734,-150.46368495,0.00021918,2]
[374445512,1753303845744,-200.0,0.00021918,2]
[374445513,1753303845754,-808.7,0.00021929,5]
[374445514,1753303845765,-460.0,0.00021947,2]
[374445515,1753303845775,-471.45,0.00021947,2]
[374445516,1753303845785,-651.05,0.00021947,2]
[374445517,1753303845795,-577.86,0.00021947,2]
[374445518,1753303845805,-716.81,0.00021947,2]
[374445519,1753303845815,-151.0,0.00021951,2]
[374445520,1753303845825,-199.33024982,0.00021951,2]
[374445522,1753303845836,-151.0,0.00021951,2]
[374445524,1753303845845,-151.0,0.00021951,2]
[374445526,1753303845855,-151.0,0.00021951,2]
[374445527,1753303845865,-151.0,0.00021951,2]
[374445528,1753303845875,-151.0,0.00021951,2]
[374445529,1753303845885,-584.0,0.00021951,2]
[374445531,1753303845895,-424.0,0.00021951,2]
[374445533,1753303845905,-952.97789721,0.00021969,2]
[374445534,1753303845917,-4479.72793878,0.00021969,2]
[374445535,1753303845930,-160.0,0.00022,7]
[374445536,1753303845940,-4239.3,0.00022,7]
[374445538,1753303845950,-19158.64,0.00022,7]
[374445539,1753303845959,-12622.36869388,0.00022,7]
[374445540,1753303845970,-184.57566,0.00022,7]
[374445541,1753303845979,-2519.43,0.00022,7]
[374445542,1753303845989,-184.57566,0.00022,7]
[374445543,1753303845999,-214.67886746,0.00022,7]
[374445544,1753303846008,-178.0,0.00022,2]
[374445545,1753303846018,-223.0315306,0.00022032,2]
[374445546,1753303846029,-437.941031,0.0002205,8]
[374445547,1753303846039,-153.0,0.000221,2]
[374445548,1753303846048,-668.33,0.00022117,2]
[374445549,1753303846058,-777.33,0.00022118,2]
[374445550,1753303846069,-879.56,0.00022118,2]
[374445551,1753303846079,-586.53,0.00022118,2]
[374445553,1753303846088,-1878.19,0.00022118,2]
[374445555,1753303846098,-1010.62,0.00022119,2]
[374445557,1753303846112,-460.0,0.00022119,2]
[374445559,1753303846122,-460.0,0.0002212,2]
[374445561,1753303846132,-460.0,0.0002212,2]
[374445563,1753303846141,-626.83,0.0002212,2]
[374445565,1753303846152,-1660.13,0.00022121,2]
[374445567,1753303846162,-1607.0,0.00022126,2]
[374445569,1753303846171,-306.0,0.00022152,2]
[374445571,1753303846184,-311.0,0.0002216,2]
[374445573,1753303846194,-311.0,0.00022173,2]
[374445575,1753303846203,-178.0,0.00022192,7]
[374445577,1753303846213,-407.17,0.00022199,2]
[374445579,1753303846222,-311.0,0.00022214,2]
[374445581,1753303846232,-311.0,0.00022219,2]
[374445583,1753303846242,-460.0,0.00022221,2]
[374445585,1753303846255,-651.05,0.00022221,2]
[374445587,1753303846266,-577.86,0.00022221,2]
[374445589,1753303846277,-716.81,0.00022221,2]
[374445591,1753303846286,-151.0,0.00022223,7]
[374445593,1753303846296,-151.0,0.00022223,7]
[374445595,1753303846306,-151.0,0.00022223,7]
[374445597,1753303846317,-282.286241,0.00022223,7]
[374445599,1753303846327,-282.286241,0.00022223,7]
[374445601,1753303846337,-151.0,0.00022223,2]
[374445604,1753303846347,-199.82738621,0.00022225,2]
[374445606,1753303846356,-151.0,0.00022225,2]
[374445607,1753303846366,-151.0,0.00022225,2]
[374445609,1753303846376,-151.0,0.00022225,2]
[374445611,1753303846386,-151.0,0.00022225,2]
[374445613,1753303846396,-151.0,0.00022225,2]
[374445615,1753303846406,-584.0,0.00022225,2]
[374445618,1753303846416,-424.0,0.00022225,2]
[374445620,1753303846426,-808.7,0.00022236,5]
[374445622,1753303846436,-151.0,0.00022247,7]
[374445624,1753303846445,-151.0,0.00022247,7]
[374445625,1753303846455,-182.933249,0.00022247,7]
[374445627,1753303846464,-182.933249,0.00022247,7]
[374445629,1753303846474,-197.14,0.00022293,2]
[374445632,1753303846484,-360.0,0.00022316,2]
[374445633,1753303846494,-648.0,0.00022348,2]
[374445636,1753303846504,-2157.0,0.00022348,2]
[374445638,1753303846514,-969.0,0.00022348,2]
[374445639,1753303846523,-311.0,0.00022358,2]
[374445642,1753303846533,-1607.0,0.00022377,2]
[374445644,1753303846543,-668.33,0.00022391,2]
[374445646,1753303846552,-777.33,0.00022392,2]
[374445648,1753303846562,-879.56,0.00022392,2]
[374445650,1753303846572,-586.53,0.00022392,2]
[374445652,1753303846581,-1878.19,0.00022392,2]
[374445654,1753303846591,-1010.62,0.00022393,2]
[374445656,1753303846601,-460.0,0.00022393,2]
[374445658,1753303846611,-460.0,0.00022394,2]
[374445660,1753303846620,-383.37097487,0.00022394,2]
[374445662,1753303846630,-626.83,0.00022394,2]
[374445664,1753303846639,-1660.13,0.00022395,2]
[374445665,1753303846649,-151.0,0.00022438,7]
[374445667,1753303846659,-421.795716,0.00022438,7]
[374445670,1753303846670,-421.795716,0.00022438,7]
[374445672,1753303846681,-234.9174,0.00022465,7]
[374445674,1753303846691,-151.0,0.00022465,7]
[374445676,1753303846700,-151.217932,0.00022465,7]
[374445678,1753303846710,-151.0,0.00022465,7]
[374445680,1753303846721,-229.78124,0.00022465,7]
[374445682,1753303846731,-229.78124,0.00022465,7]
[374445684,1753303846740,-1157.665437,0.00022465,7]
[374445686,1753303846750,-1157.665437,0.00022465,7]
[374445688,1753303846759,-2061.23,0.00022465,2]
[374445690,1753303846770,-500.0,0.00022473,2]
[374445692,1753303846780,-500.0,0.00022473,2]
[374445694,1753303846791,-500.0,0.00022473,2]
[374445696,1753303846805,-623.3398421,0.00022473,2]
[374445709,1753303846948,-332.903844,0.00022473,7]
[374445711,1753303846959,-332.903844,0.00022473,7]
[374445713,1753303846969,-151.0,0.00022473,7]
[374445715,1753303846979,-151.0,0.00022473,7]
[374445717,1753303846988,-184.57566,0.00022473,7]
[374445719,1753303846997,-184.57566,0.00022473,7]
[374445720,1753303847007,-460.0,0.00022495,2]
[374445721,1753303847016,-651.05,0.00022495,2]
[374445722,1753303847026,-577.86,0.00022495,2]